bitfinex-derivatives/quotes_ETHF0:USTF0_20260119
["timestamp","ask_amount","ask_price","bid_price","bid_amount"]
[1768810051609,1.12470491,3203.6,3202.3,0.13498303]
[1768810051610,0.92542271,3203.2,3202.3,0.13498303]
[1768810051909,1.12470491,3203.6,3202.3,0.13498303]
[1768810052103,0.92551254,3203.5,3202.3,0.13498303]
[1768810052304,0.92551254,3203.4,3202.3,0.13498303]
[1768810052504,0.92551254,3203.3,3202.3,0.13498303]
[1768810052709,0.92551254,3203.2,3202.3,0.13498303]
[1768810052900,1.12470491,3203.6,3202.3,0.13498303]
[1768810053101,0.9256308,3203.5,3202.3,0.13498303]
[1768810053301,0.9256308,3203.4,3202.3,0.13498303]
[1768810053500,0.9256308,3203.3,3202.3,0.13498303]
[1768810053697,0.00337632,3203.6,3202.3,0.13498303]
[1768810053908,0.00337632,3203.6,3202.4,0.13498303]
[1768810054208,0.00337632,3203.6,3202.5,0.13498303]
[1768810054411,0.00337632,3203.6,3202.7,0.13498303]
[1768810055905,0.00337632,3203.6,3202.8,0.13966621]
[1768810057918,1.12132859,3204.0,3202.8,0.13966621]
[1768810058104,1.12132859,3204.1,3202.8,0.13966621]
[1768810058915,1.12426871,3204.1,3202.8,0.13966621]
[1768810060915,1.12426871,3204.1,3202.8,0.00468318]
[1768810061503,0.00294012,3204.1,3202.8,0.00468318]
[1768810062405,0.08862089,3204.1,3202.8,0.00468318]
[1768810063304,1.20994948,3204.1,3202.8,0.00468318]
[1768810063510,1.12763085,3203.8,3202.0,0.29008167]
[1768810063911,1.13231403,3203.8,3202.0,0.29008167]
[1768810064917,0.08156706,3203.7,3202.0,0.29008167]
[1768810065822,0.91929047,3203.6,3202.0,0.29008167]
[1768810066020,0.91929047,3203.5,3202.0,0.29008167]
[1768810066219,0.91929047,3203.4,3202.0,0.29008167]
[1768810066418,0.08156706,3203.7,3202.0,0.29008167]
[1768810066419,0.91930494,3203.3,3202.0,0.29008167]
[1768810066622,0.08156706,3203.7,3202.0,0.29008167]
[1768810066823,0.91931259,3203.6,3202.0,0.29008167]
[1768810067127,0.91931259,3203.5,3202.0,0.29008167]
[1768810067424,0.91931259,3203.4,3202.0,0.29008167]
[1768810067722,0.91931259,3203.3,3202.0,0.29008167]
[1768810067922,0.08156706,3203.7,3202.0,0.29008167]
[1768810068123,0.9193257,3203.6,3202.0,0.29008167]
[1768810068324,0.9193257,3203.5,3202.0,0.29008167]
[1768810068523,0.9193257,3203.4,3202.0,0.29008167]
[1768810068716,0.9193257,3203.3,3202.0,0.29008167]
[1768810068918,1.04077269,3203.4,3202.0,1.33085436]
[1768810069120,0.91933914,3203.3,3202.0,1.33085436]
[1768810069319,1.04077269,3203.4,3202.0,1.33085436]
[1768810069520,0.91935236,3203.3,3202.0,1.33085436]
[1768810069722,1.04077269,3203.4,3202.0,1.33085436]
[1768810069921,0.9193522,3203.3,3202.0,0.29008167]
[1768810070122,1.04077269,3203.4,3202.0,0.29008167]
[1768810070322,0.91936356,3203.3,3202.0,0.29008167]
[1768810070524,1.04077269,3203.4,3202.0,0.29008167]
[1768810070715,0.91936323,3203.3,3202.0,0.29008167]
[1768810070922,1.04077269,3203.4,3202.0,0.29008167]
[1768810071123,0.91936323,3203.3,3202.0,0.29008167]
[1768810071322,1.04077269,3203.4,3202.0,0.29008167]
[1768810071633,0.91937184,3203.3,3202.0,0.29008167]
[1768810071823,1.04077269,3203.4,3202.0,0.29008167]
[1768810072027,0.91937184,3203.3,3202.0,0.29008167]
[1768810072328,1.04077269,3203.4,3202.0,0.29008167]
[1768810072525,0.91938057,3203.3,3202.0,0.29008167]
[1768810072830,1.04077269,3203.0,3202.0,0.29008167]
[1768810074131,1.04077269,3203.2,3202.0,0.29008167]
[1768810082535,1.04077269,3203.4,3202.0,0.29008167]
[1768810082737,0.91865814,3203.3,3202.0,0.29008167]
[1768810082928,0.91865814,3203.2,3202.0,0.29008167]
[1768810083134,1.04077269,3203.2,3202.0,0.29008167]
[1768810088543,0.91879225,3203.1,3202.0,0.29008167]
[1768810088742,1.04077269,3203.2,3202.0,0.29008167]
[1768810088942,0.91879879,3203.1,3202.0,0.29008167]
[1768810089148,1.04077269,3203.2,3202.0,0.29008167]
[1768810089341,0.91891497,3203.1,3202.0,0.29008167]
[1768810089542,1.04077269,3203.2,3202.0,0.29008167]
[1768810089741,0.91891497,3203.1,3202.0,0.29008167]
[1768810089941,1.04077269,3203.2,3202.0,0.29008167]
[1768810090144,0.91891531,3203.1,3202.0,0.29008167]
[1768810090345,1.04077269,3203.2,3202.0,0.29008167]
[1768810090552,0.91906152,3203.1,3202.0,0.29008167]
[1768810090746,1.04077269,3203.2,3202.0,0.29008167]
[1768810091048,0.91906152,3203.1,3202.0,0.29008167]
[1768810091248,1.04077269,3203.2,3202.0,0.29008167]
[1768810091449,0.91924491,3203.1,3202.0,0.29008167]
[1768810091649,1.04077269,3203.2,3202.0,0.29008167]
[1768810091851,0.91924491,3203.1,3202.0,0.29008167]
[1768810092046,1.04077269,3203.2,3202.0,0.29008167]
[1768810092248,0.9194606,3203.1,3202.0,0.29008167]
[1768810095355,0.9194606,3203.1,3202.0,1.33085436]
[1768810095660,0.9194606,3203.0,3202.2,1.04077269]
[1768810095843,2.16210128,3203.4,3202.0,1.33085436]
[1768810096044,0.91995068,3203.3,3202.0,1.33085436]
[1768810096244,0.91995068,3203.2,3202.0,1.33085436]
[1768810096444,0.91995068,3203.1,3202.0,1.33085436]
[1768810096741,0.91995068,3203.0,3202.0,1.33085436]
[1768810096940,2.16210128,3203.4,3202.0,1.33085436]
[1768810097141,0.91997617,3203.3,3202.0,1.33085436]
[1768810097340,0.91997617,3203.2,3202.0,1.33085436]
[1768810097544,0.91997617,3203.1,3202.0,1.33085436]
[1768810097746,0.91997617,3203.0,3202.0,1.33085436]
[1768810097955,2.16210128,3203.4,3202.0,1.33085436]
[1768810098156,0.92000079,3203.3,3202.0,1.33085436]
[1768810098354,0.92000079,3203.2,3202.0,1.33085436]
[1768810098650,0.92000079,3203.1,3202.0,1.33085436]
[1768810098855,0.92000079,3203.0,3202.0,0.29008167]
[1768810099055,2.16210128,3203.4,3202.0,0.29008167]
[1768810099254,0.92008181,3203.3,3202.0,0.29008167]
[1768810099455,0.92008181,3203.2,3202.0,0.29008167]
[1768810099656,0.92008181,3203.1,3202.0,0.29008167]
[1768810099952,0.92008181,3203.0,3202.0,0.29008167]
[1768810100148,2.16210128,3203.4,3202.0,0.29008167]
[1768810100348,0.92011837,3203.3,3202.0,0.29008167]
[1768810100551,0.92011837,3203.2,3202.0,0.29008167]
[1768810100851,0.92011837,3203.1,3202.0,0.29008167]
[1768810101049,0.92011837,3203.0,3202.0,0.29008167]
[1768810101254,2.16210128,3203.4,3202.1,1.04077269]
[1768810101449,0.92016956,3203.3,3202.1,1.04077269]
[1768810101648,0.92016956,3203.2,3202.1,1.04077269]
[1768810101852,0.92016956,3203.1,3202.1,1.04077269]
[1768810102160,0.92016956,3203.0,3202.1,1.04077269]
[1768810102361,2.16210128,3203.4,3202.1,1.04077269]
[1768810102563,0.92023943,3203.3,3202.1,1.04077269]
[1768810102753,0.92023943,3203.2,3202.1,1.04077269]
[1768810102954,0.92023943,3203.1,3202.1,1.04077269]
[1768810103155,0.92023943,3203.0,3202.1,1.04077269]
[1768810103357,2.16210128,3203.4,3202.1,1.04077269]
[1768810103650,0.92023894,3203.3,3202.1,1.04077269]
[1768810103854,0.92023894,3203.2,3202.1,1.04077269]
[1768810104056,0.92023894,3203.1,3202.1,1.04077269]
[1768810104251,0.92023894,3203.0,3202.1,1.04077269]
[1768810104455,2.16210128,3203.4,3202.0,1.33085436]
[1768810104755,0.92024196,3203.3,3202.0,1.33085436]
[1768810104955,0.92024196,3203.2,3202.0,1.33085436]
[1768810105156,0.92024196,3203.1,3202.0,1.33085436]
[1768810105455,0.92024196,3203.0,3202.0,1.33085436]
[1768810105651,2.16210128,3203.4,3202.0,1.33085436]
[1768810105867,0.92024601,3203.3,3202.0,1.33085436]
[1768810106068,2.0415746,3203.3,3202.0,1.33085436]
[1768810106766,0.92024601,3203.2,3202.0,1.33085436]
[1768810106966,0.92024601,3203.1,3202.0,1.33085436]
[1768810107268,0.92024601,3203.0,3202.0,1.33085436]
[1768810107466,1.12132859,3203.5,3202.2,1.04077269]
[1768810107654,2.04079489,3203.5,3202.4,1.04077269]
[1768810107853,0.9194663,3203.4,3202.4,1.04077269]
[1768810108065,0.9194663,3203.3,3202.4,1.04077269]
[1768810108268,0.9194663,3203.2,3202.4,1.04077269]
[1768810108472,0.9194663,3203.1,3202.4,1.04077269]
[1768810108770,1.12132859,3203.6,3202.4,1.04077269]
[1768810110069,1.12132859,3203.6,3202.4,1.17638116]
[1768810112672,2.04076872,3203.7,3202.4,1.17638116]
[1768810112970,2.34023884,3203.6,3202.4,1.17638116]
[1768810113164,0.91944013,3203.5,3202.4,1.17638116]
[1768810113367,0.91944013,3203.4,3202.4,1.17638116]
[1768810113569,0.91944013,3203.3,3202.4,1.17638116]
[1768810113765,0.91944013,3203.2,3202.4,1.17638116]
[1768810113969,0.91944013,3203.1,3202.4,1.17638116]
[1768810114162,1.12132859,3203.6,3202.4,1.17638116]
[1768810115471,0.91947101,3203.5,3202.4,1.17638116]
[1768810115664,1.12132859,3203.7,3202.4,1.17638116]
[1768810115665,0.91947101,3203.4,3202.4,1.17638116]
[1768810115865,0.91947101,3203.3,3202.4,1.17638116]
[1768810116066,0.91947101,3203.2,3202.4,1.17638116]
[1768810116268,0.91947101,3203.1,3202.4,1.17638116]
[1768810116567,1.12132859,3203.7,3202.4,1.17638116]
[1768810116763,0.2994753,3203.6,3202.4,1.17638116]
[1768810116970,0.91947779,3203.5,3202.5,1.17638116]
[1768810117273,0.91947779,3203.4,3202.2,1.04077269]
[1768810117472,0.91947779,3203.3,3202.2,1.04077269]
[1768810117768,0.91947779,3203.2,3202.2,1.04077269]
[1768810117968,0.91947779,3203.1,3202.1,0.14124112]
[1768810118164,1.12132859,3203.6,3202.4,1.18201381]
[1768810121877,1.12132859,3203.6,3202.4,0.14124112]
[1768810122671,2.16210128,3203.6,3202.4,0.14124112]
[1768810122871,0.91948993,3203.5,3202.4,0.14124112]
[1768810123072,0.91948993,3203.4,3202.4,0.14124112]
[1768810123267,0.91948993,3203.3,3202.4,0.14124112]
[1768810123575,0.91948993,3203.2,3202.4,0.14124112]
[1768810123777,0.91948993,3203.1,3202.4,0.14124112]
[1768810123978,1.04077269,3203.5,3202.4,0.14124112]
[1768810124178,0.91948422,3203.4,3202.4,0.14124112]
[1768810124475,0.91948422,3203.3,3202.1,1.04077269]
[1768810124676,0.91948422,3203.2,3202.1,1.04077269]
[1768810124876,0.91948422,3203.1,3202.1,1.04077269]
[1768810125077,0.91948422,3203.0,3202.1,1.04077269]
[1768810125279,1.04077269,3203.5,3202.1,1.04077269]
[1768810125479,3.08159313,3203.5,3202.1,1.04077269]
[1768810125780,0.91949185,3203.4,3202.1,1.04077269]
[1768810125976,1.12132859,3203.4,3202.1,1.04077269]
[1768810126171,2.04082044,3203.4,3202.1,1.04077269]
[1768810126875,1.04077269,3203.3,3202.0,0.29747112]
[1768810127185,0.91949185,3203.2,3202.0,0.29747112]
[1768810127478,0.91949185,3203.2,3202.1,1.04077269]
[1768810127781,0.91949185,3203.1,3202.1,1.04077269]
[1768810127981,0.91949185,3203.0,3202.1,1.04077269]
[1768810128183,1.12132859,3203.4,3202.1,1.04077269]
[1768810128375,2.0408355,3203.4,3202.1,1.04077269]
[1768810130885,2.0408355,3203.4,3202.0,0.29747112]
[1768810131186,0.91950691,3203.3,3202.0,0.29747112]
[1768810131376,0.91950691,3203.2,3202.0,0.29747112]
[1768810131577,0.91950691,3203.1,3202.0,0.29747112]
[1768810131777,0.91950691,3203.0,3202.0,0.29747112]
[1768810131981,1.12132859,3203.4,3202.0,0.29747112]
[1768810136891,1.12132859,3203.4,3202.0,0.14124112]
[1768810137388,2.04081629,3203.4,3202.0,0.14124112]
[1768810137597,0.9194877,3203.3,3202.0,0.14124112]
[1768810137889,0.9194877,3203.2,3202.0,0.14124112]
[1768810138081,0.9194877,3203.1,3202.0,0.14124112]
[1768810138282,0.9194877,3203.0,3202.0,0.14124112]
[1768810138483,1.12132859,3203.3,3202.0,0.14124112]
[1768810139292,1.12132859,3203.3,3201.5,0.13714566]
[1768810139485,1.12132859,3203.3,3201.6,1.92214566]
[1768810140793,1.12132859,3203.3,3201.7,0.13714566]
[1768810141096,1.0407462,3202.7,3201.3,0.13714566]
[1768810141285,0.9190022,3202.6,3201.3,0.13714566]
[1768810141486,0.9190022,3202.5,3201.4,0.13714566]
[1768810141697,0.9190022,3202.4,3201.4,0.13714566]
[1768810141994,1.12132859,3202.8,3201.4,0.13714566]
[1768810142293,0.9177894,3202.7,3201.4,0.13714566]
[1768810142482,0.9177894,3202.6,3201.4,0.13714566]
[1768810142684,1.12132859,3203.1,3201.4,0.13714566]
[1768810142894,2.03882721,3203.1,3201.4,0.13714566]
[1768810143193,0.91749862,3203.0,3201.4,0.13714566]
[1768810143394,0.91749862,3202.9,3201.4,0.13714566]
[1768810143596,0.91749862,3202.8,3201.4,0.13714566]
[1768810143898,1.12132859,3203.2,3201.4,0.13714566]
[1768810147301,2.03879982,3203.2,3201.4,0.13714566]
[1768810147498,0.91747123,3203.1,3201.4,0.13714566]
[1768810147698,0.91747123,3203.0,3201.4,0.13714566]
[1768810147899,0.91747123,3202.9,3201.4,0.13714566]
[1768810148098,0.91747123,3202.8,3201.4,0.13714566]
[1768810148287,1.12132859,3203.2,3201.4,0.13714566]
[1768810148898,1.12132859,3203.2,3201.5,0.13714566]
[1768810149899,1.12132859,3203.2,3201.5,0.29340566]
[1768810150099,1.12132859,3203.2,3201.6,0.13714566]
[1768810151100,1.19864937,3203.2,3201.6,0.13714566]
[1768810151297,0.99458364,3203.1,3201.6,0.13714566]
[1768810151498,0.91726286,3203.0,3201.6,0.13714566]
[1768810151699,0.91726286,3202.9,3201.6,0.13714566]
[1768810151897,0.91726286,3202.8,3201.6,0.13714566]
[1768810152096,0.07732078,3203.1,3201.6,0.13714566]
[1768810152297,0.91721997,3203.0,3201.6,0.13714566]
[1768810152497,0.91721997,3202.9,3201.6,0.13714566]
[1768810152697,0.91721997,3202.8,3201.6,0.13714566]
[1768810152901,0.07732078,3203.1,3201.6,0.13714566]
[1768810153100,0.91722104,3203.0,3201.6,0.13714566]
[1768810153300,0.91722104,3202.9,3201.6,0.13714566]
[1768810153601,0.91722104,3202.8,3201.6,0.13714566]
[1768810153790,0.07732078,3203.1,3201.6,0.13714566]
[1768810153991,0.91722018,3203.0,3201.6,0.13714566]
[1768810154293,0.91722018,3202.9,3201.6,0.13714566]
[1768810154492,0.91722018,3202.8,3201.6,0.13714566]
[1768810154688,0.07732078,3203.1,3201.6,0.13714566]
[1768810154991,0.91721992,3203.0,3201.6,0.13714566]
[1768810155192,0.91721992,3202.9,3201.6,0.13714566]
[1768810155388,0.91721992,3202.8,3201.6,0.13714566]
[1768810155591,0.07732078,3203.1,3201.6,0.13714566]
[1768810155792,0.91722569,3203.0,3201.6,0.13714566]
[1768810155990,0.91722569,3202.9,3201.6,0.13714566]
[1768810156195,0.91722569,3202.8,3201.6,0.13714566]
[1768810156394,0.07732078,3203.1,3201.6,0.13714566]
[1768810156605,0.91723722,3203.0,3201.6,0.13714566]
[1768810156801,0.91723722,3202.9,3201.6,0.13714566]
[1768810156995,0.91723722,3202.8,3201.5,0.15626]
[1768810157191,0.91723722,3202.7,3201.5,0.15626]
[1768810157396,0.0782657,3203.0,3201.5,0.15626]
[1768810157597,0.91719942,3202.9,3201.5,0.15626]
[1768810157796,0.91719942,3202.8,3201.5,0.15626]
[1768810157992,0.91719942,3202.7,3201.5,0.15626]
[1768810158197,0.0782657,3203.0,3201.5,0.15626]
[1768810158401,0.91720736,3202.9,3201.5,0.15626]
[1768810158601,0.91720736,3202.8,3201.5,0.15626]
[1768810158899,0.91720736,3202.7,3201.5,0.15626]
[1768810159099,0.91726673,3202.6,3201.5,0.15626]
[1768810159298,0.07828081,3202.9,3201.2,0.13714566]
[1768810159500,0.07827166,3202.8,3201.2,0.13714566]
[1768810159694,0.91725515,3202.7,3201.2,0.13714566]
[1768810159900,0.07827166,3202.8,3201.2,0.13714566]
[1768810159901,0.91725515,3202.6,3201.2,0.13714566]
[1768810160106,0.91725515,3202.5,3201.2,0.13714566]
[1768810160405,0.07827166,3202.8,3201.2,0.13714566]
[1768810160602,0.91738405,3202.7,3201.2,0.13714566]
[1768810160798,0.91738405,3202.6,3201.2,0.13714566]
[1768810161000,0.00468318,3202.3,3201.2,0.13714566]
[1768810173613,0.00468318,3202.3,3201.4,0.13736085]
[1768810174413,1.12132859,3202.9,3201.4,0.13736085]
[1768810174616,2.04315392,3202.9,3201.5,0.00468318]
[1768810174805,2.04315392,3202.9,3201.6,0.13736085]
[1768810174806,0.92182533,3202.8,3201.6,0.13736085]
[1768810175006,0.92182533,3202.7,3201.6,0.13736085]
[1768810175213,0.92182533,3202.6,3201.6,0.13736085]
[1768810175414,0.92182533,3202.5,3201.6,0.13736085]
[1768810175710,1.12132859,3202.9,3201.6,0.13736085]
[1768810177714,0.92185739,3202.8,3201.6,0.13736085]
[1768810177914,0.92185739,3202.7,3201.6,0.13736085]
[1768810178103,1.12132859,3203.1,3201.6,0.13736085]
[1768810180012,0.92200542,3203.0,3201.8,0.13672894]
[1768810180209,0.92200542,3202.9,3201.8,0.13672894]
[1768810180410,1.12132859,3203.4,3201.8,0.13672894]
[1768810180714,0.92208499,3203.3,3201.8,0.13672894]
[1768810181009,0.92208499,3203.2,3201.8,0.13672894]
[1768810181209,1.12132859,3203.6,3201.8,0.13672894]
[1768810181412,2.04310705,3203.6,3201.8,0.13672894]
[1768810181911,2.04310705,3203.6,3201.8,1.17747514]
[1768810182115,2.04310705,3203.6,3201.9,0.13672894]
[1768810182813,0.92177846,3203.5,3201.9,0.13672894]
[1768810183019,0.92177846,3203.4,3201.9,0.13672894]
[1768810183214,40.8,3203.7,3201.9,0.13672894]
[1768810183418,0.92114878,3203.6,3201.9,0.13672894]
[1768810183620,0.92114878,3203.5,3201.9,0.13672894]
[1768810183818,0.92114878,3203.4,3201.9,0.13672894]
[1768810184120,40.87733891,3203.7,3201.9,0.13672894]
[1768810184320,0.92086973,3203.6,3201.9,0.13672894]
[1768810184510,0.92086973,3203.5,3201.9,0.13672894]
[1768810184711,41.91808511,3203.7,3201.9,0.13672894]
[1768810185018,0.92088271,3203.6,3201.9,0.13672894]
[1768810185219,0.92088271,3203.5,3201.9,0.13672894]
[1768810185521,0.92088271,3203.4,3201.9,0.13672894]
[1768810185717,0.92088271,3203.3,3201.9,0.13672894]
[1768810185906,43.0394137,3203.7,3201.9,0.13672894]
[1768810186111,0.9206433,3203.6,3201.9,0.13672894]
[1768810186312,0.9206433,3203.5,3201.9,0.13672894]
[1768810186513,0.9206433,3203.4,3201.9,0.13672894]
[1768810186713,0.9206433,3203.3,3201.9,0.13672894]
[1768810186909,43.0394137,3203.7,3201.9,0.13672894]
[1768810186910,0.07752787,3203.6,3201.9,0.13672894]
[1768810187114,0.07752787,3203.5,3201.9,0.13672894]
[1768810187315,0.92039963,3203.4,3201.9,0.13672894]
[1768810187515,0.92039963,3203.3,3201.9,0.13672894]
[1768810187715,0.92039963,3203.2,3201.9,0.13672894]
[1768810187920,0.07752787,3203.5,3201.9,0.13672894]
[1768810188114,0.92031827,3203.4,3201.9,0.13672894]
[1768810188316,0.92031827,3203.3,3201.9,0.13672894]
[1768810188520,0.92031827,3203.2,3201.9,0.13672894]
[1768810188722,0.07752787,3203.5,3201.9,0.13672894]
[1768810189019,0.92024218,3203.4,3201.9,0.13672894]
[1768810189220,0.92024218,3203.3,3201.9,0.13672894]
[1768810189416,0.92024218,3203.2,3201.9,0.13672894]
[1768810189626,0.07752787,3203.5,3201.9,0.13672894]
[1768810189824,0.92017409,3203.4,3201.9,0.13672894]
[1768810190123,0.92017409,3203.3,3201.9,0.13672894]
[1768810190321,0.07752787,3203.5,3201.9,0.13672894]
[1768810190520,0.92012902,3203.4,3201.9,0.13672894]
[1768810190723,0.92012902,3203.3,3201.9,0.13672894]
[1768810191027,1.11826967,3203.5,3202.1,1.0407418]
[1768810191224,0.92012559,3203.4,3202.1,1.0407418]
[1768810191418,0.92012559,3203.3,3202.1,1.0407418]
[1768810191619,1.0407418,3203.5,3202.1,1.17747074]
[1768810191920,0.92009309,3203.4,3202.1,1.17747074]
[1768810192119,0.92009309,3203.3,3202.1,1.17747074]
[1768810192417,1.0407418,3203.6,3202.1,1.17747074]
[1768810192618,0.9200983,3203.6,3202.5,1.0407418]
[1768810192820,0.9200983,3203.5,3202.5,1.0407418]
[1768810193011,0.9200983,3203.4,3202.5,1.0407418]
[1768810193215,0.9200983,3203.3,3202.5,1.0407418]
[1768810193411,1.12132859,3203.7,3202.5,1.0407418]
[1768810193621,0.92012061,3203.6,3202.5,1.0407418]
[1768810193822,0.92012061,3203.5,3202.5,1.0407418]
[1768810194116,0.92012061,3203.4,3202.5,1.0407418]
[1768810194310,0.92012061,3203.3,3202.5,1.0407418]
[1768810194517,1.12132859,3203.7,3202.5,1.0407418]
[1768810194715,0.92015443,3203.6,3202.5,1.0407418]
[1768810194918,0.92015443,3203.5,3202.5,1.0407418]
[1768810195217,0.92015443,3203.4,3202.5,1.0407418]
[1768810195423,0.92015443,3203.3,3202.5,1.0407418]
[1768810195618,1.12132859,3203.7,3202.5,1.0407418]
[1768810195817,0.92020023,3203.6,3202.5,1.0407418]
[1768810196017,0.92020023,3203.5,3202.5,1.0407418]
[1768810196217,0.92020023,3203.4,3202.5,1.0407418]
[1768810196417,0.92020023,3203.3,3202.5,1.0407418]
[1768810196618,0.92020023,3203.2,3202.5,1.0407418]
[1768810196915,1.12132859,3203.8,3202.8,1.0407418]
[1768810197117,0.9217703,3203.7,3202.8,1.0407418]
[1768810197316,0.9217703,3203.6,3202.6,1.0407418]
[1768810197519,0.9217703,3203.5,3202.6,1.0407418]
[1768810197717,2.901,3204.0,3202.7,0.13148908]
[1768810197921,0.92181001,3203.9,3202.7,0.13148908]
[1768810198229,0.92181001,3203.8,3202.7,0.13148908]
[1768810198429,0.92181001,3203.7,3202.7,0.13148908]
[1768810198725,2.901,3204.0,3202.7,0.13148908]
[1768810198926,0.92173837,3203.9,3202.7,0.13148908]
[1768810199224,0.92173837,3203.8,3202.7,0.13148908]
[1768810199425,0.92173837,3203.7,3202.7,0.13148908]
[1768810199627,2.901,3204.0,3202.7,0.13148908]
[1768810199826,0.92171458,3203.9,3202.7,0.13148908]
[1768810200027,0.92171458,3203.8,3202.9,1.0407418]
[1768810200227,0.92171458,3203.7,3202.9,1.04308787]
[1768810200528,0.00294012,3204.1,3203.1,1.0407418]
[1768810200730,0.92177958,3204.0,3203.1,1.0407418]
[1768810200927,0.92177958,3203.9,3203.1,1.0407418]
[1768810201228,0.00294012,3204.1,3203.1,1.0407418]
[1768810201420,0.92170413,3204.0,3203.1,1.0407418]
[1768810201622,0.00294012,3204.1,3203.1,1.0407418]
[1768810201927,0.92170395,3204.0,3203.0,1.04542498]
[1768810202130,0.00294012,3204.1,3203.0,1.04542498]
[1768810202324,0.92169283,3204.0,3203.0,1.04542498]
[1768810202517,0.00294012,3204.1,3203.0,1.04542498]
[1768810202723,0.92169283,3204.0,3203.0,1.04542498]
[1768810202930,0.00294012,3204.1,3203.0,1.04542498]
[1768810203123,0.92169283,3204.0,3203.0,1.04542498]
[1768810203329,0.00294012,3204.1,3203.0,1.04542498]
[1768810203530,0.92174124,3204.0,3203.0,1.04542498]
[1768810203720,0.00294012,3204.1,3203.0,1.04542498]
[1768810203926,0.92174124,3204.0,3203.0,1.04542498]
[1768810204122,0.00294012,3204.1,3203.0,1.04542498]
[1768810204325,0.92178251,3204.0,3203.0,0.00468318]
[1768810204523,1.96252431,3203.9,3203.0,0.00468318]
[1768810204740,1.0407418,3203.9,3203.0,0.00468318]
[1768810205433,1.0407418,3203.7,3203.0,0.00468318]
[1768810207028,0.08133035,3204.1,3203.0,0.00468318]
[1768810207029,1.0407418,3203.5,3203.0,0.00468318]
[1768810208442,1.0407418,3203.3,3202.0,1.0407418]
[1768810208739,1.0407418,3203.3,3202.0,1.17223088]
[1768810209238,1.0407418,3203.3,3202.0,0.13148908]
[1768810209436,0.00468318,3203.6,3202.4,1.0407418]
[1768810209635,0.9223288,3203.5,3202.4,1.0407418]
[1768810209941,0.9223288,3203.4,3202.6,1.0407418]
[1768810210131,0.00468318,3203.6,3202.8,1.0407418]
[1768810211740,0.00468318,3203.6,3202.6,1.17223088]
[1768810214441,0.00468318,3203.6,3202.6,0.13148908]
[1768810215843,0.00468318,3203.6,3202.6,1.17223088]
[1768810216036,0.00468318,3203.6,3202.7,0.13148908]
[1768810216741,0.00468318,3203.6,3202.8,1.17223088]
[1768810217540,0.00468318,3203.6,3202.9,0.13148908]
[1768810217945,0.00468318,3203.6,3203.0,1.0407418]
[1768810219142,0.00468318,3203.6,3203.0,1.17223088]
[1768810220142,0.00468318,3203.6,3203.0,0.13148908]
[1768810221948,0.00468318,3203.6,3203.0,1.17223088]
[1768810222551,0.00468318,3203.6,3203.1,0.13777405]
[1768810222848,0.00294012,3204.1,3203.1,0.13777405]
[1768810223050,0.92402656,3204.0,3203.1,0.13777405]
[1768810223350,0.92402656,3203.9,3203.1,0.13777405]
[1768810223536,0.92402656,3203.8,3203.1,0.13777405]
[1768810223741,0.00294012,3204.1,3203.1,0.13777405]
[1768810223942,0.92411418,3204.0,3203.1,0.13777405]
[1768810224145,0.92411418,3203.9,3203.1,0.13777405]
[1768810224454,0.00294012,3204.1,3203.1,0.13777405]
[1768810224653,0.92425484,3204.0,3203.1,0.13777405]
[1768810224949,0.92425484,3203.9,3203.1,0.13777405]
[1768810225149,0.00294012,3204.1,3203.1,0.13777405]
[1768810225349,0.92439565,3204.0,3203.1,0.13777405]
[1768810225548,0.92439565,3203.9,3203.1,0.13777405]
[1768810225746,0.00294012,3204.1,3203.1,0.13777405]
[1768810225950,0.92439476,3204.0,3203.1,0.13777405]
[1768810226254,0.00294012,3204.1,3203.1,0.13777405]
[1768810226255,0.92439476,3203.9,3203.1,0.13777405]
[1768810226448,0.92439476,3203.8,3203.1,0.13777405]
[1768810226749,0.00294012,3204.1,3203.1,0.13777405]
[1768810227051,0.92525768,3204.0,3203.0,0.00468318]
[1768810227352,0.92525768,3203.9,3203.0,0.00468318]
[1768810227543,0.92525768,3203.8,3203.0,0.00468318]
[1768810227745,0.00294012,3204.1,3203.0,0.00468318]
[1768810227947,0.9259387,3204.0,3203.0,0.00468318]
[1768810228254,0.9259387,3203.9,3203.0,0.00468318]
[1768810228549,0.9259387,3203.8,3203.0,0.00468318]
[1768810228753,0.00294012,3204.1,3203.0,0.00468318]
[1768810228952,0.92589992,3204.0,3203.0,0.00468318]
[1768810229150,0.92589992,3203.9,3203.0,0.00468318]
[1768810229349,0.92589992,3203.8,3203.0,0.00468318]
[1768810229550,0.00294012,3204.1,3203.0,0.00468318]
[1768810229754,0.92586648,3204.0,3203.0,0.00468318]
[1768810229952,0.92586648,3203.9,3203.0,0.00468318]
[1768810230153,0.92586648,3203.8,3203.0,0.00468318]
[1768810230354,0.00294012,3204.1,3203.0,0.00468318]
[1768810230553,0.92585305,3204.0,3203.0,0.00468318]
[1768810230754,0.92585305,3203.9,3203.0,0.00468318]
[1768810230951,0.92585305,3203.8,3203.0,0.00468318]
[1768810231260,0.00294012,3204.1,3203.0,0.00468318]
[1768810231461,0.92582691,3204.0,3203.0,0.00468318]
[1768810231757,0.92582691,3203.9,3203.0,0.00468318]
[1768810231957,0.92582691,3203.8,3203.0,0.00468318]
[1768810232158,0.00294012,3204.1,3203.0,0.00468318]
[1768810232358,0.92580518,3204.0,3203.0,0.00468318]
[1768810232559,0.92580518,3203.9,3203.0,0.00468318]
[1768810232754,0.92580518,3203.8,3203.0,0.00468318]
[1768810232965,0.00294012,3204.1,3203.0,0.00468318]
[1768810233259,0.92580519,3204.0,3203.0,0.00468318]
[1768810233449,0.92580519,3203.9,3203.0,0.00468318]
[1768810233650,0.92580519,3203.8,3203.0,0.00468318]
[1768810233851,0.00294012,3204.1,3203.0,0.00468318]
[1768810234054,0.92575714,3204.0,3203.0,0.00468318]
[1768810234261,0.92575714,3203.9,3203.0,0.00468318]
[1768810234461,0.92575714,3203.8,3203.0,0.00468318]
[1768810234663,0.00294012,3204.1,3203.0,0.00468318]
[1768810234853,0.92575124,3204.0,3203.0,0.00468318]
[1768810235053,0.92575124,3203.9,3203.0,0.00468318]
[1768810235257,0.92575124,3203.8,3203.0,0.00468318]
[1768810235553,0.00294012,3204.1,3203.0,0.00468318]
[1768810235754,0.92573959,3204.0,3203.0,0.00468318]
[1768810235954,0.92573959,3203.9,3203.0,0.00468318]
[1768810236153,0.92573959,3203.8,3203.0,0.00468318]
[1768810236358,0.00294012,3204.1,3203.0,0.00468318]
[1768810236561,0.92573288,3204.0,3203.0,0.00468318]
[1768810236753,0.92573288,3203.9,3203.0,0.00468318]
[1768810236955,0.92573288,3203.8,3203.0,0.00468318]
[1768810237157,0.00294012,3204.1,3203.0,0.00468318]
[1768810237357,0.92573382,3204.0,3203.0,0.00468318]
[1768810237656,0.92573382,3203.9,3203.0,0.00468318]
[1768810237857,0.92573382,3203.8,3203.0,0.00468318]
[1768810238056,0.00294012,3204.1,3203.0,0.00468318]
[1768810238358,0.92573197,3204.0,3203.0,0.00468318]
[1768810238557,0.92573197,3203.9,3203.0,0.00468318]
[1768810238757,0.92573197,3203.8,3203.0,0.00468318]
[1768810239056,0.00294012,3204.1,3203.0,0.00468318]
[1768810239257,0.92610788,3204.0,3203.0,0.00468318]